[Event "Memorial Zita 2019"]
[Site "Prague"]
[Date "2019.06.27"]
[Round "7.5"]
[White "Vokoun, Jan"]
[Black "Frolov, Artur"]
[Result "1/2-1/2"]
[ECO "E67"]
[WhiteElo "2072"]
[BlackElo "2453"]
[Annotator "ChessBase"]
[PlyCount "151"]
[EventDate "2019.06.23"]
[EventType "tourn"]
[EventCountry "CZE"]
[SourceTitle "playchess.com"]
[Source "ChessBase"]
[SourceQuality "1"]
[TimeControl "5400+30"]

1. Nf3 {[%emt 0:00:00]} Nf6 {[%emt 0:00:00]} 2. c4 {[%emt 0:00:00]} g6 {[%emt 0:00:00]} 3. Nc3 {[%emt 0:00:06]} Bg7 {[%emt 0:00:01]} 4. g3 {[%emt 0:00:10]} O-O {[%emt 0:01:11]} 5. Bg2 {[%emt 0:00:13]} d6 {[%emt 0:00:08]} 6. d4 {[%emt 0:03:42]} Nbd7 {[%emt 0:00:06]} 7. O-O {[%emt 0:00:09]} e5 {[%emt 0:00:03]} 8. Qc2 {[%emt 0:00:12]} c6 {[%emt 0:05:37]} 9. Rd1 {[%emt 0:02:13]} Qc7 {[%emt 0:00:47]} 10. b3 {[%emt 0:00:30]} Re8 {[%emt 0:00:15]} 11. Ba3 {[%emt 0:06:02]} e4 {[%emt 0:08:00]} 12. Ne1 {[%emt 0:01:06]} e3 {[%emt 0:03:54]} 13. fxe3 {[%emt 0:06:12]} Ng4 {[%emt 0:01:29]} 14. Bc1 {[%emt 0:01:51]} Nxe3 {[%emt 0:04:16]} 15. Bxe3 {[%emt 0:00:05]} Rxe3 {[%emt 0:00:03]} 16. Rd3 {[%emt 0:26:24]} Re7 {[%emt 0:02:07]} 17. Qd2 {[%emt 0:05:28]} Nf6 {[%emt 0:06:07]} 18. Qf4 {[%emt 0:02:54]} Bf5 {[%emt 0:07:32]} 19. e4 {[%emt 0:04:39]} Rae8 {[%emt 0:01:28]} 20. exf5 {[%emt 0:00:11]} Rxe1+ {[%emt 0:00:04]} 21. Rxe1 {[%emt 0:00:05]} Rxe1+ {[%emt 0:00:04]} 22. Kf2 {[%emt 0:00:08]} Qe7 {[%emt 0:09:12]} 23. Bf3 {[%emt 0:10:10]} gxf5 {[%emt 0:08:13]} 24. Qxf5 {[%emt 0:00:49]} Bh6 {[%emt 0:00:39]} 25. Kg2 {[%emt 0:23:07]} Rc1 {[%emt 0:19:04]} 26. Ne4 {[%emt 0:03:08]} Rc2+ {[%emt 0:01:38]} 27. Kh1 {[%emt 0:00:51]} Kg7 {[%emt 0:09:22]} 28. Qxf6+ {[%emt 0:03:35]} Qxf6 {[%emt 0:00:04]} 29. Nxf6 {[%emt 0:00:00]} Kxf6 {[%emt 0:00:03]} 30. a4 {[%emt 0:00:00]} Bg5 {[%emt 0:02:26]} 31. Kg1 {[%emt 0:00:00]} h6 {[%emt 0:02:05]} 32. h4 {[%emt 0:00:00]} Bd2 {[%emt 0:01:02]} 33. Be4 {[%emt 0:00:00]} Rb2 {[%emt 0:00:37]} 34. Kf2 {[%emt 0:00:00]} Bc3+ {[%emt 0:00:40]} 35. Kf3 {[%emt 0:00:07]} Rxb3 {[%emt 0:00:09]} 36. Kg4 {[%emt 0:00:27]} Ra3 {[%emt 0:01:02]} 37. Rf3+ {[%emt 0:01:09]} Kg7 {[%emt 0:02:26]} 38. Kf5 {[%emt 0:00:13]} Bb2 {[%emt 0:02:48]} 39. Rxa3 {[%emt 0:00:07]} Bxa3 {[%emt 0:00:03]} 40. Bf3 {[%emt 0:01:09]} Bb2 {[%emt 0:00:33]} 41. d5 {[%emt 0:00:37]} c5 {[%emt 0:00:25]} 42. g4 {[%emt 0:00:37]} Bc3 {[%emt 0:01:11]} 43. g5 {[%emt 0:00:08]} Be1 {[%emt 0:01:25]} 44. gxh6+ {[%emt 0:00:12]} Kxh6 {[%emt 0:00:22]} 45. Kf6 {[%emt 0:01:21]} Bxh4+ {[%emt 0:00:19]} 46. Kxf7 {[%emt 0:00:01]} Kg5 {[%emt 0:00:25]} 47. Ke6 {[%emt 0:00:07]} Bg3 {[%emt 0:00:07]} 48. Kd7 {[%emt 0:00:25]} Kf4 {[%emt 0:00:28]} 49. Bg2 {[%emt 0:00:25]} Ke3 {[%emt 0:00:41]} 50. Kc7 {[%emt 0:00:25]} Kd4 {[%emt 0:02:20]} 51. a5 {[%emt 0:01:59]} Be1 {[%emt 0:01:26]} 52. Kxb7 {[%emt 0:00:56]} Bxa5 {[%emt 0:00:04]} 53. Bf1 {[%emt 0:00:04]} Bb6 {[%emt 0:00:12]} 54. Kc6 {[%emt 0:00:48]} Ke5 {[%emt 0:01:22]} 55. Kb5 {[%emt 0:00:08]} Kd4 {[%emt 0:00:06]} 56. Be2 {[%emt 0:00:37]} Bd8 {[%emt 0:00:25]} 57. Ka6 {[%emt 0:00:13]} Ke3 {[%emt 0:00:19]} 58. Bf1 {[%emt 0:00:05]} Bb6 {[%emt 0:00:02]} 59. Kb5 {[%emt 0:00:09]} Kd2 {[%emt 0:00:54]} 60. Ka4 {[%emt 0:00:11]} Kc3 {[%emt 0:00:05]} 61. Be2 {[%emt 0:00:07]} a6 {[%emt 0:00:13]} 62. Bf1 {[%emt 0:00:09]} Bd8 {[%emt 0:00:06]} 63. Be2 {[%emt 0:00:12]} Kc2 {[%emt 0:00:34]} 64. Bf1 {[%emt 0:00:16]} Kb2 {[%emt 0:00:17]} 65. Be2 {[%emt 0:00:23]} Kc3 {[%emt 0:00:08]} 66. Bf1 {[%emt 0:00:05]} Kd2 {[%emt 0:00:34]} 67. Bh3 {[%emt 0:00:05]} Kd3 {[%emt 0:00:35]} 68. Bf1+ {[%emt 0:00:02]} Kc3 {[%emt 0:00:05]} 69. Be2 {[%emt 0:00:05]} Kd4 {[%emt 0:00:41]} 70. Bf1 {[%emt 0:00:11]} Ke3 {[%emt 0:00:15]} 71. Bh3 {[%emt 0:00:05]} Ke2 {[%emt 0:00:28]} 72. Bc8 {[%emt 0:00:41]} a5 {[%emt 0:00:03]} 73. Ba6 {[%emt 0:00:31]} Kd3 {[%emt 0:00:06]} 74. Bb5 {[%emt 0:00:06]} Kc3 {[%emt 0:00:09]} 75. Ba6 {[%emt 0:00:04]} Kb2 {[%emt 0:00:11]} 76. Bb5 {[%emt 0:00:03]} 1/2-1/2

[Event "Memorial Zita 2019"]
[Site "Prague"]
[Date "2019.06.28"]
[Round "8.1"]
[White "Netusil, Miloslav"]
[Black "Frolov, Artur"]
[Result "1-0"]
[ECO "D40"]
[WhiteElo "2189"]
[BlackElo "2453"]
[Annotator "ChessBase"]
[PlyCount "95"]
[EventDate "2019.06.23"]
[EventType "tourn"]
[EventCountry "CZE"]
[SourceTitle "playchess.com"]
[Source "ChessBase"]
[SourceQuality "1"]
[TimeControl "5400+30"]

1. e4 {[%emt 0:00:00]} c5 {[%emt 0:02:02]} 2. c3 {[%emt 0:00:00]} d5 {[%emt 0:00:04]} 3. exd5 {[%emt 0:00:00]} Qxd5 {[%emt 0:00:03]} 4. d4 {[%emt 0:00:00]} Nc6 {[%emt 0:00:05]} 5. Nf3 {[%emt 0:00:10]} Nf6 {[%emt 0:00:06]} 6. Be2 {[%emt 0:07:15]} cxd4 {[%emt 0:00:53]} 7. cxd4 {[%emt 0:00:07]} e6 {[%emt 0:00:02]} 8. O-O {[%emt 0:00:14]} Be7 {[%emt 0:00:03]} 9. Nc3 {[%emt 0:00:45]} Qd8 {[%emt 0:01:07]} 10. Re1 {[%emt 0:02:42]} O-O {[%emt 0:00:13]} 11. a3 {[%emt 0:01:53]} b6 {[%emt 0:00:33]} 12. Bc4 {[%emt 0:01:47]} Bb7 {[%emt 0:03:02]} 13. Ba2 {[%emt 0:01:06]} Rc8 {[%emt 0:01:13]} 14. Bg5 {[%emt 0:04:33]} Nd5 {[%emt 0:01:31]} 15. Bxd5 {[%emt 0:00:54]} Bxg5 {[%emt 0:00:30]} 16. Be4 {[%emt 0:00:14]} Bh6 {[%emt 0:16:59]} 17. d5 {[%emt 0:02:19]} exd5 {[%emt 0:05:29]} 18. Bxd5 {[%emt 0:00:08]} Rc7 {[%emt 0:09:24]} 19. Qa4 {[%emt 0:02:08]} a6 {[%emt 0:22:39]} 20. Rad1 {[%emt 0:00:37]} Qb8 {[%emt 0:00:03]} 21. Qh4 {[%emt 0:02:16]} Rd7 {[%emt 0:08:04]} 22. Be4 {[%emt 0:11:22]} Rxd1 {[%emt 0:07:33]} 23. Rxd1 {[%emt 0:00:20]} Rd8 {[%emt 0:13:43]} 24. Nd5 {[%emt 0:00:56]} f6 {[%emt 0:03:59]} 25. Re1 {[%emt 0:02:27]} Ne5 {[%emt 0:02:07]} 26. Nxe5 {[%emt 0:08:38]} Rxd5 {[%emt 0:00:40]} 27. Bxd5+ {[%emt 0:00:55]} Bxd5 {[%emt 0:00:01]} 28. Qd4 {[%emt 0:00:33]} Qa8 {[%emt 0:00:51]} 29. Rd1 {[%emt 0:00:29]} fxe5 {[%emt 0:00:04]} 30. Qxd5+ {[%emt 0:00:05]} Qxd5 {[%emt 0:00:02]} 31. Rxd5 {[%emt 0:00:10]} Bc1 {[%emt 0:00:02]} 32. Rd6 {[%emt 0:00:26]} Bxb2 {[%emt 0:00:28]} 33. Rxb6 {[%emt 0:01:27]} Bxa3 {[%emt 0:00:01]} 34. Rxa6 {[%emt 0:00:09]} Bc5 {[%emt 0:00:04]} 35. Rc6 {[%emt 0:00:19]} Bd4 {[%emt 0:00:19]} 36. Rc7 {[%emt 0:00:05]} h5 {[%emt 0:00:08]} 37. Kf1 {[%emt 0:00:30]} Kh7 {[%emt 0:00:05]} 38. Rc6 {[%emt 0:00:10]} g6 {[%emt 0:00:16]} 39. Ke2 {[%emt 0:00:13]} Kh6 {[%emt 0:00:04]} 40. h4 {[%emt 0:01:10]} Kg7 {[%emt 0:00:44]} 41. Kf3 {[%emt 0:01:04]} Kf7 {[%emt 0:01:27]} 42. Rc2 {[%emt 0:00:11]} Bb6 {[%emt 0:02:13]} 43. Ke4 {[%emt 0:01:25]} Bd8 {[%emt 0:00:01]} 44. g3 {[%emt 0:00:25]} Bf6 {[%emt 0:00:15]} 45. Rc6 {[%emt 0:00:34]} Bg7 {[%emt 0:02:24]} 46. Rc7+ {[%emt 0:03:32]} Kf6 {[%emt 0:00:01]} 47. Rxg7 {[%emt 0:00:10]} Kxg7 {[%emt 0:00:03]} 48. Kxe5 {[%emt 0:00:06]} 1-0

[Event "Memorial Zita 2019"]
[Site "Prague"]
[Date "2019.06.28"]
[Round "8.3"]
[White "Pribylova, Sofie"]
[Black "Novy, Filip"]
[Result "0-1"]
[ECO "B76"]
[WhiteElo "2069"]
[BlackElo "2170"]
[Annotator "NA"]
[PlyCount "108"]
[EventDate "2019.06.23"]
[EventType "tourn"]
[EventCountry "CZE"]
[SourceTitle "playchess.com"]
[Source "ChessBase"]
[SourceQuality "1"]
[TimeControl "5400+30"]

1. e4 {[%emt 0:00:00]} c5 {[%emt 0:17:57]} 2. Nf3 {[%emt 0:00:00]} d6 {[%emt 0:00:04]} 3. d4 {[%emt 0:00:07]} cxd4 {[%emt 0:00:04]} 4. Nxd4 {[%emt 0:00:06]} Nf6 {[%emt 0:00:04]} 5. Nc3 {[%emt 0:00:08]} g6 {[%emt 0:00:05]} 6. Be3 {[%emt 0:00:35]} Bg7 {[%emt 0:00:07]} 7. f3 {[%emt 0:00:37]} O-O {[%emt 0:00:18]} 8. Qd2 {[%emt 0:00:32]} Nc6 {[%emt 0:00:04]} 9. O-O-O {[%emt 0:01:06]} d5 {[%emt 0:00:13]} 10. Nxc6 {[%emt 0:05:51]} bxc6 {[%emt 0:00:05]} 11. exd5 {[%emt 0:00:05]} cxd5 {[%emt 0:00:28]} 12. Nxd5 {[%emt 0:00:55]} Nxd5 {[%emt 0:00:05]} 13. Qxd5 {[%emt 0:00:02]} Qc7 {[%emt 0:00:20]} 14. Qc5 {[%emt 0:00:03]} Qb7 {[%emt 0:00:26]} 15. Qb5 {[%emt 0:02:56]} Qxb5 {[%emt 0:00:21]} 16. Bxb5 {[%emt 0:00:04]} Rb8 {[%emt 0:00:25]} 17. a4 {[%emt 0:15:16]} a6 {[%emt 0:00:53]} 18. Bc4 {[%emt 0:00:48]} Bxb2+ {[%emt 0:00:44]} 19. Kd2 {[%emt 0:00:07]} Rb4 {[%emt 0:00:19]} 20. Bb3 {[%emt 0:00:55]} Be6 {[%emt 0:00:29]} 21. Bc5 {[%emt 0:01:11]} Rb7 {[%emt 0:00:33]} 22. Bxe6 {[%emt 0:01:16]} fxe6 {[%emt 0:00:06]} 23. c3 {[%emt 0:10:30]} Rc8 {[%emt 0:00:21]} 24. Bb4 {[%emt 0:03:41]} Rbc7 {[%emt 0:00:18]} 25. Rhe1 {[%emt 0:00:41]} Bxc3+ {[%emt 0:00:42]} 26. Bxc3 {[%emt 0:00:05]} Rxc3 {[%emt 0:00:02]} 27. Rxe6 {[%emt 0:00:46]} Kf7 {[%emt 0:01:19]} 28. Rde1 {[%emt 0:03:29]} Rc2+ {[%emt 0:01:13]} 29. Kd3 {[%emt 0:00:34]} R8c3+ {[%emt 0:00:33]} 30. Kd4 {[%emt 0:00:12]} Rc7 {[%emt 0:00:04]} 31. Rxa6 {[%emt 0:04:39]} Rxg2 {[%emt 0:00:20]} 32. h4 {[%emt 0:05:31]} Rd2+ {[%emt 0:03:34]} 33. Ke3 {[%emt 0:00:42]} Rh2 {[%emt 0:00:20]} 34. a5 {[%emt 0:00:51]} Rxh4 {[%emt 0:03:30]} 35. Ra1 {[%emt 0:00:03]} Rc3+ {[%emt 0:03:46]} 36. Kf2 {[%emt 0:02:14]} Rf4 {[%emt 0:01:42]} 37. Ra8 {[%emt 0:00:44]} Rfxf3+ {[%emt 0:00:30]} 38. Kg2 {[%emt 0:00:13]} h5 {[%emt 0:01:02]} 39. a6 {[%emt 0:00:13]} Rg3+ {[%emt 0:12:31]} 40. Kh2 {[%emt 0:01:01]} Rh3+ {[%emt 0:00:44]} 41. Kg2 {[%emt 0:00:15]} Rcg3+ {[%emt 0:00:38]} 42. Kf2 {[%emt 0:00:18]} h4 {[%emt 0:00:17]} 43. Rf1 {[%emt 0:02:53]} Rf3+ {[%emt 0:04:12]} 44. Ke2 {[%emt 0:00:11]} Rxf1 {[%emt 0:00:06]} 45. Kxf1 {[%emt 0:00:03]} Ra3 {[%emt 0:00:11]} 46. Kg2 {[%emt 0:00:11]} g5 {[%emt 0:00:17]} 47. a7 {[%emt 0:00:18]} g4 {[%emt 0:00:43]} 48. Rh8 {[%emt 0:01:58]} h3+ {[%emt 0:00:18]} 49. Kh2 {[%emt 0:00:04]} Rxa7 {[%emt 0:00:07]} 50. Kg3 {[%emt 0:00:16]} Ra4 {[%emt 0:00:22]} 51. Rh5 {[%emt 0:00:48]} Kg6 {[%emt 0:00:20]} 52. Re5 {[%emt 0:00:29]} Kf6 {[%emt 0:00:06]} 53. Rh5 {[%emt 0:00:16]} e5 {[%emt 0:00:21]} 54. Rh8 {[%emt 0:00:58]} Rf4 {[%emt 0:00:07]} 0-1

[Event "Memorial Zita 2019"]
[Site "Prague"]
[Date "2019.06.28"]
[Round "8.4"]
[White "Neckar, Lubomir"]
[Black "Kiss, Pal"]
[Result "1/2-1/2"]
[ECO "A11"]
[WhiteElo "2285"]
[BlackElo "2278"]
[Annotator "NA"]
[PlyCount "37"]
[EventDate "2019.06.23"]
[EventType "tourn"]
[EventCountry "CZE"]
[SourceTitle "playchess.com"]
[Source "ChessBase"]
[SourceQuality "1"]
[TimeControl "5400+30"]

1. Nf3 {[%emt 0:00:00]} Nf6 {[%emt 0:00:00]} 2. g3 {[%emt 0:00:00]} d5 {[%emt 0:00:26]} 3. Bg2 {[%emt 0:00:00]} c6 {[%emt 0:00:12]} 4. O-O {[%emt 0:00:03]} Bg4 {[%emt 0:00:32]} 5. c4 {[%emt 0:00:14]} e6 {[%emt 0:00:18]} 6. d3 {[%emt 0:00:20]} Nbd7 {[%emt 0:00:25]} 7. cxd5 {[%emt 0:00:15]} cxd5 {[%emt 0:00:22]} 8. Qb3 {[%emt 0:00:10]} Nc5 {[%emt 0:10:09]} 9. Qb5+ {[%emt 0:00:36]} Qd7 {[%emt 0:04:21]} 10. Qxd7+ {[%emt 0:00:13]} Ncxd7 {[%emt 0:08:53]} 11. Nc3 {[%emt 0:00:21]} Bc5 {[%emt 0:02:58]} 12. h3 {[%emt 0:10:18]} Bxf3 {[%emt 0:10:39]} 13. Bxf3 {[%emt 0:00:07]} Ne5 {[%emt 0:01:30]} 14. Bg2 {[%emt 0:00:24]} O-O {[%emt 0:11:46]} 15. Bf4 {[%emt 0:02:03]} Ng6 {[%emt 0:02:12]} 16. Bd2 {[%emt 0:01:06]} a6 {[%emt 0:03:12]} 17. Rac1 {[%emt 0:01:29]} Rac8 {[%emt 0:40:35]} 18. Na4 {[%emt 1:21:21]} Bd4 {[%emt 0:00:30]} 19. Rxc8 {[%emt 0:00:00]} 1/2-1/2

[Event "Memorial Zita 2019"]
[Site "Prague"]
[Date "2019.06.29"]
[Round "9.1"]
[White "Fedorov, Evgueny"]
[Black "Netusil, Miloslav"]
[Result "1-0"]
[ECO "C10"]
[WhiteElo "2250"]
[BlackElo "2189"]
[Annotator "NA"]
[PlyCount "27"]
[EventDate "2019.06.23"]
[EventType "tourn"]
[EventCountry "CZE"]
[SourceTitle "playchess.com"]
[Source "ChessBase"]
[SourceQuality "1"]
[TimeControl "5400+30"]

1. e4 {[%emt 0:00:00]} e6 {[%emt 0:00:00]} 2. d4 {[%emt 0:00:00]} d5 {[%emt 0:00:00]} 3. Nc3 {[%emt 0:00:00]} Be7 {[%emt 0:00:26]} 4. Nf3 {[%emt 0:00:12]} Nf6 {[%emt 0:00:54]} 5. Bd3 {[%emt 0:00:27]} c5 {[%emt 0:07:31]} 6. exd5 {[%emt 0:00:11]} cxd4 {[%emt 0:01:29]} 7. Bb5+ {[%emt 0:06:55]} Bd7 {[%emt 0:02:49]} 8. Bxd7+ {[%emt 0:01:02]} Qxd7 {[%emt 0:00:17]} 9. dxe6 {[%emt 0:02:01]} Qxe6+ {[%emt 0:00:39]} 10. Ne2 {[%emt 0:00:09]} Bb4+ $16 {[%emt 0:03:09]} 11. Bd2 {[%emt 0:15:51]} Bc5 {[%emt 0:00:35]} 12. O-O {[%emt 0:00:08]} Nc6 {[%emt 0:00:20]} 13. b4 {[%emt 0:20:49]} d3 {[%emt 0:03:49]} 14. Nf4 {[%emt 0:01:11]} 1-0

[Event "Memorial Zita 2019"]
[Site "Prague"]
[Date "2019.06.29"]
[Round "9.2"]
[White "Kiss, Pal"]
[Black "Trickov, Vasil"]
[Result "1/2-1/2"]
[ECO "D14"]
[WhiteElo "2278"]
[BlackElo "2319"]
[Annotator "ChessBase"]
[PlyCount "20"]
[EventDate "2019.06.23"]
[EventType "tourn"]
[EventCountry "CZE"]
[SourceTitle "playchess.com"]
[Source "ChessBase"]
[SourceQuality "1"]
[TimeControl "5400+30"]

1. d4 d5 2. c4 c6 3. Nf3 Nf6 4. cxd5 cxd5 5. Nc3 Nc6 6. Bf4 Bf5 7. e3 e6 8. Bd3 Bxd3 9. Qxd3 Bd6 10. Bxd6 Qxd6 1/2-1/2

[Event "Memorial Zita 2019"]
[Site "Prague"]
[Date "2019.06.29"]
[Round "9.3"]
[White "Novy, Filip"]
[Black "Neckar, Lubomir"]
[Result "1-0"]
[ECO "B03"]
[WhiteElo "2170"]
[BlackElo "2285"]
[Annotator "NA"]
[PlyCount "65"]
[EventDate "2019.06.23"]
[EventType "tourn"]
[EventCountry "CZE"]
[SourceTitle "playchess.com"]
[Source "ChessBase"]
[SourceQuality "1"]
[TimeControl "5400+30"]

1. e4 {[%emt 0:44:36]} Nf6 {[%emt 0:00:00]} 2. e5 {[%emt 0:01:23]} Nd5 {[%emt 0:00:00]} 3. d4 {[%emt 0:00:10]} d6 {[%emt 0:00:00]} 4. c4 {[%emt 0:00:05]} Nb6 {[%emt 0:00:00]} 5. exd6 {[%emt 0:00:03]} exd6 {[%emt 0:03:58]} 6. Nc3 {[%emt 0:00:15]} Be7 {[%emt 0:00:16]} 7. Bd3 {[%emt 0:05:05]} O-O {[%emt 0:02:32]} 8. Nge2 {[%emt 0:42:23]} Nc6 {[%emt 0:12:14]} 9. O-O {[%emt 0:00:00]} Bf6 {[%emt 0:01:43]} 10. a3 {[%emt 0:00:00]} g6 {[%emt 0:16:46]} 11. Be3 {[%emt 0:00:00]} Re8 {[%emt 0:13:09]} 12. h3 {[%emt 0:00:00]} Bg7 {[%emt 0:08:41]} 13. Rc1 {[%emt 0:00:00]} Ne7 {[%emt 0:14:10]} 14. d5 {[%emt 0:00:00]} Bf5 {[%emt 0:06:39]} 15. Ng3 {[%emt 0:00:00]} Qd7 {[%emt 0:05:57]} 16. b3 {[%emt 0:00:00]} Rad8 {[%emt 0:03:59]} 17. Re1 {[%emt 0:00:00]} Nbc8 {[%emt 0:02:34]} 18. Bf1 {[%emt 0:00:00]} c5 {[%emt 0:00:56]} 19. Qd2 {[%emt 0:00:00]} a6 {[%emt 0:01:40]} 20. b4 {[%emt 0:00:00]} b6 {[%emt 0:00:11]} 21. Bf4 {[%emt 0:00:00]} Qc7 {[%emt 0:00:59]} 22. Nce4 {[%emt 0:00:00]} Bxe4 {[%emt 0:01:52]} 23. Nxe4 {[%emt 0:00:00]} f6 {[%emt 0:02:11]} 24. g4 {[%emt 0:00:00]} g5 {[%emt 0:00:37]} 25. Bg3 {[%emt 0:00:00]} Ng6 {[%emt 0:00:09]} 26. Bd3 {[%emt 0:00:00]} Ne5 {[%emt 0:00:04]} 27. Bxe5 {[%emt 0:00:00]} Rxe5 {[%emt 0:00:22]} 28. Ng3 {[%emt 0:00:00]} Rde8 {[%emt 0:00:45]} 29. Rxe5 {[%emt 0:00:00]} Rxe5 {[%emt 0:00:07]} 30. Qc2 {[%emt 0:00:00]} Bh8 {[%emt 0:01:36]} 31. Bf5 {[%emt 0:00:00]} Re7 {[%emt 0:00:44]} 32. Be6+ {[%emt 0:00:00]} Kf8 {[%emt 0:00:19]} 33. Qf5 {[%emt 0:00:00]} 1-0

[Event "Memorial Zita 2019"]
[Site "Prague"]
[Date "2019.06.29"]
[Round "9.4"]
[White "Vokoun, Jan"]
[Black "Pribylova, Sofie"]
[Result "1/2-1/2"]
[ECO "A16"]
[WhiteElo "2072"]
[BlackElo "2069"]
[Annotator "NA"]
[PlyCount "23"]
[EventDate "2019.06.23"]
[EventType "tourn"]
[EventCountry "CZE"]
[SourceTitle "playchess.com"]
[Source "ChessBase"]
[SourceQuality "1"]
[TimeControl "5400+30"]

1. Nf3 {[%emt 0:00:00]} Nf6 {[%emt 0:00:23]} 2. c4 {[%emt 0:00:43]} g6 {[%emt 0:00:39]} 3. Nc3 {[%emt 0:02:12]} d5 {[%emt 0:00:30]} 4. cxd5 {[%emt 0:01:13]} Nxd5 {[%emt 0:00:05]} 5. Qa4+ {[%emt 0:01:50]} c6 {[%emt 0:01:45]} 6. Qd4 {[%emt 0:12:18]} f6 {[%emt 0:01:56]} 7. e4 {[%emt 0:00:28]} Nc7 {[%emt 0:02:52]} 8. Qxd8+ {[%emt 0:00:26]} Kxd8 {[%emt 0:00:03]} 9. d4 {[%emt 0:02:06]} Be6 {[%emt 0:01:19]} 10. Be3 {[%emt 0:00:28]} Nd7 {[%emt 0:01:51]} 11. h3 {[%emt 0:04:59]} h5 {[%emt 0:01:07]} 12. O-O-O {[%emt 0:30:37]} 1/2-1/2